fUST/lending_fUST_20250827
["ID","MTS","AMOUNT","RATE_DAILY","PERIOD"]
[381633595,1756299153716,-558.49,0.00026575,2]
[381633596,1756299153727,-3533.68,0.00026575,2]
[381633597,1756299153743,-877.94,0.00026575,2]
[381633598,1756299153753,-657.92,0.00026575,2]
[381633599,1756299153763,-541.91,0.00026575,2]
[381633600,1756299153774,-1306.03,0.00026575,2]
[381633601,1756299153784,-4136.98,0.00026575,2]
[381633602,1756299153795,-480.0,0.00026575,2]
[381633603,1756299153804,-1078.58,0.00026575,2]
[381633604,1756299153820,-680.84,0.00026575,2]
[381633605,1756299153841,-611.17,0.00026575,2]
[381633606,1756299153855,-745.97,0.00026575,2]
[381633607,1756299153866,-483.6,0.00026575,2]
[381633608,1756299153876,-1546.75,0.00026575,2]
[381633609,1756299153886,-1237.23,0.00026575,2]
[381633610,1756299153896,-2253.99,0.00026575,2]
[381633611,1756299153906,-4927.91,0.00026575,2]
[381633612,1756299153916,-509.28,0.00026575,2]
[381633613,1756299153926,-727.85,0.00026575,2]
[381633614,1756299153938,-711.45,0.00026575,2]
[381633615,1756299153947,-681.98,0.00026575,2]
[381633616,1756299153958,-2444.85,0.00026575,2]
[381633617,1756299154088,-1897.45,0.00026575,2]
[381633618,1756299154099,-2263.07,0.00026575,2]
[381633619,1756299154109,-4617.09,0.00026575,2]
[381633620,1756299154118,-867.08,0.00026575,2]
[381633621,1756299154128,-1837.84,0.00026575,2]
[381633622,1756299154138,-2907.91,0.00026575,2]
[381633623,1756299154147,-480.0,0.00026575,2]
[381633624,1756299154157,-1354.76,0.00026575,2]
[381633625,1756299154166,-1079.7,0.00026575,2]
[381633626,1756299154176,-2286.82,0.00026575,2]
[381633627,1756299154185,-576.96,0.00026575,2]
[381633628,1756299154194,-480.0,0.00026575,2]
[381633629,1756299154203,-1707.9,0.00026575,2]
[381633630,1756299154213,-812.92,0.00026575,2]
[381633631,1756299154222,-739.93,0.00026575,2]
[381633632,1756299154232,-1062.67,0.00026575,2]
[381633633,1756299154242,-679.72,0.00026575,2]
[381633634,1756299154251,-3535.34,0.00026575,2]
[381633635,1756299154260,-550.73,0.00026575,2]
[381633636,1756299154270,-577.42,0.00026575,2]
[381633637,1756299154279,-695.89,0.00026575,2]
[381633638,1756299154289,-680.83,0.00026575,2]
[381633639,1756299154298,-600.93,0.00026575,2]
[381633640,1756299154308,-829.46,0.00026575,2]
[381633641,1756299154318,-1631.46,0.00026575,2]
[381633642,1756299154327,-1995.59,0.00026575,2]
[381633643,1756299154337,-1590.45,0.00026575,2]
[381633644,1756299154346,-539.05,0.00026575,2]
[381633645,1756299154356,-712.28,0.00026575,2]
[381633646,1756299154366,-638.72,0.00026575,2]
[381633647,1756299154375,-266.71,0.00026575,2]
[381633648,1756299154385,-480.0,0.00026575,2]
[381633649,1756299154395,-755.02,0.00026575,2]
[381633650,1756299154404,-480.0,0.00026575,2]
[381633651,1756299154414,-789.18,0.00026575,2]
[381633652,1756299154425,-3199.34,0.00026575,2]
[381633653,1756299154435,-480.0,0.00026575,2]
[381633654,1756299154444,-685.55,0.00026575,2]
[381633655,1756299154453,-2224.28,0.00026575,2]
[381633656,1756299154463,-622.18,0.00026575,2]
[381633657,1756299154473,-1015.89,0.00026575,2]
[381633658,1756299154482,-1801.64,0.00026575,2]
[381633659,1756299154491,-678.47,0.00026575,2]
[381633660,1756299154500,-631.08,0.00026575,2]
[381633661,1756299154510,-698.69,0.00026575,2]
[381633662,1756299154520,-2888.9,0.00026575,2]
[381633663,1756299154530,-908.23,0.00026575,2]
[381633664,1756299154540,-480.0,0.00026575,2]
[381633665,1756299154549,-901.06,0.00026575,2]
[381633666,1756299154559,-480.0,0.00026575,2]
[381633667,1756299154569,-480.0,0.00026575,2]
[381633668,1756299154579,-1290.3,0.00026575,2]
[381633669,1756299154589,-480.0,0.00026575,2]
[381633670,1756299154598,-1110.35,0.00026575,2]
[381633671,1756299154608,-911.51,0.00026575,2]
[381633672,1756299154618,-711.28,0.00026575,2]
[381633673,1756299154627,-5275.38,0.00026575,2]
[381633674,1756299154637,-168.0,0.00026606,2]
[381633675,1756299154648,-974.0,0.00026607,2]
[381633676,1756299154658,-638.0,0.00026607,2]
[381633677,1756299154669,-2157.0,0.00026607,2]
[381633678,1756299154679,-150.0,0.00026607,2]
[381633679,1756299154689,-221.74,0.00026656,7]
[381633680,1756299154699,-2117.11580381,0.00026661,7]
[381633681,1756299154708,-485.0,0.00026673,2]
[381633682,1756299154717,-413.694533,0.00026676,2]
[381633683,1756299154727,-168.0,0.00026678,2]
[381633684,1756299154741,-319.456912,0.00026712,2]
[381633685,1756299154751,-225.18697532,0.00026717,2]
[381633686,1756299154760,-960.0,0.00026728,2]
[381633687,1756299154769,-270.21154911,0.00026804,2]
[381633688,1756299154779,-1775.54494446,0.00026806,6]
[381633689,1756299154789,-2959.3856236,0.00026834,7]
[381633690,1756299154798,-1015.0,0.00026846,2]
[381633691,1756299154808,-480.0,0.00026849,2]
[381633692,1756299154817,-480.0,0.00026849,2]
[381633693,1756299154827,-493.86,0.00026849,2]
[381633694,1756299154837,-480.0,0.00026849,2]
[381633695,1756299154846,-562.7,0.00026849,2]
[381633696,1756299154855,-524.95,0.00026849,2]
[381633697,1756299154865,-247.8355104,0.00026849,2]
[381633698,1756299154874,-538.52,0.00026849,2]
[381633699,1756299154884,-550.62,0.00026849,2]
[381633700,1756299154893,-544.35800198,0.00026849,2]
[381633701,1756299154903,-576.16,0.00026849,2]
[381633702,1756299154912,-662.66,0.00026849,2]
[381633703,1756299154922,-582.51,0.00026849,2]
[381633704,1756299154931,-480.0,0.00026849,2]
[381633705,1756299154941,-606.2,0.00026849,2]
[381633706,1756299154950,-706.9,0.00026849,2]
[381633707,1756299154960,-882.63,0.00026849,2]
[381633708,1756299154970,-714.33,0.00026849,2]
[381633709,1756299154980,-612.47,0.00026849,2]
[381633710,1756299154989,-480.0,0.00026849,2]
[381633711,1756299154998,-480.0,0.00026849,2]
[381633712,1756299155008,-512.19,0.00026849,2]
[381633713,1756299155018,-509.06,0.00026849,2]
[381633714,1756299155028,-612.82,0.00026849,2]
[381633715,1756299155037,-627.14,0.00026849,2]
[381633716,1756299155046,-624.19,0.00026849,2]
[381633717,1756299155056,-481.22,0.00026849,2]
[381633718,1756299155065,-528.91,0.00026849,2]
[381633719,1756299155075,-608.41,0.00026849,2]
[381633720,1756299155084,-547.44,0.00026849,2]
[381633721,1756299155094,-522.91,0.00026849,2]
[381633722,1756299155103,-967.44,0.00026849,2]
[381633723,1756299155112,-624.58,0.00026849,2]
[381633724,1756299155123,-486.45,0.00026849,2]
[381633725,1756299155132,-460.26853387,0.00026849,2]
[381633726,1756299155142,-480.0,0.00026849,2]
[381633727,1756299155152,-1513.62,0.00026849,2]
[381633728,1756299155162,-740.6,0.00026849,2]
[381633729,1756299155172,-561.33,0.00026849,2]
[381633730,1756299155181,-1456.95,0.00026849,2]
[381633731,1756299155191,-1610.42,0.00026849,2]
[381633732,1756299155201,-507.15,0.00026849,2]
[381633733,1756299155210,-628.11,0.00026849,2]
[381633734,1756299155220,-569.45,0.00026849,2]
[381633735,1756299155230,-480.0,0.00026849,2]
[381633736,1756299155240,-1196.37,0.00026849,2]
[381633737,1756299155250,-1184.81,0.00026849,2]
[381633738,1756299155260,-480.0,0.00026849,2]
[381633739,1756299155269,-595.51,0.00026849,2]
[381633740,1756299155279,-974.71,0.00026849,2]
[381633741,1756299155288,-680.85,0.00026849,2]
[381633742,1756299155298,-642.37,0.00026849,2]
[381633743,1756299155308,-480.0,0.00026849,2]
[381633744,1756299155318,-620.04,0.00026849,2]
[381633745,1756299155328,-1799.04,0.00026849,2]
[381633746,1756299155338,-888.29,0.00026849,2]
[381633747,1756299155348,-511.13,0.00026849,2]
[381633748,1756299155359,-615.79,0.00026849,2]
[381633749,1756299155369,-837.84,0.00026849,2]
[381633750,1756299155379,-488.18,0.00026849,2]
[381633751,1756299155388,-1249.5,0.00026849,2]
[381633752,1756299155398,-841.78,0.00026849,2]
[381633753,1756299155408,-818.54,0.00026849,2]
[381633754,1756299155418,-634.58,0.00026849,2]
[381633755,1756299155429,-435.76053121,0.00026849,2]
[381633756,1756299155439,-1132.23,0.00026849,2]
[381633757,1756299155448,-480.0,0.00026849,2]
[381633758,1756299155458,-630.18,0.00026849,2]
[381633759,1756299155468,-1020.11,0.00026849,2]
[381633760,1756299155478,-987.21,0.00026849,2]
[381633761,1756299155487,-480.0,0.00026849,2]
[381633762,1756299155497,-480.0,0.00026849,2]
[381633763,1756299155507,-561.06,0.00026849,2]
[381633764,1756299155517,-544.78,0.00026849,2]
[381633765,1756299155527,-655.34,0.00026849,2]
[381633766,1756299155537,-660.63,0.00026849,2]
[381633767,1756299155546,-935.85,0.00026849,2]
[381633768,1756299155556,-1338.48,0.00026849,2]
[381633769,1756299155567,-651.24,0.00026849,2]
[381633770,1756299155576,-480.0,0.00026849,2]
[381633771,1756299155586,-761.3,0.00026849,2]
[381633772,1756299155596,-631.68,0.00026849,2]
[381633773,1756299155606,-1057.73,0.00026849,2]
[381633774,1756299155616,-520.4,0.00026849,2]
[381633775,1756299155626,-628.89,0.00026849,2]
[381633776,1756299155636,-733.13,0.00026849,2]
[381633777,1756299155646,-775.56,0.00026849,2]
[381633778,1756299155656,-480.0,0.00026849,2]
[381633779,1756299155666,-1793.19,0.00026849,2]
[381633780,1756299155675,-1312.96,0.00026849,2]
[381633781,1756299155685,-480.0,0.00026849,2]
[381633782,1756299155695,-594.15,0.00026849,2]
[381633783,1756299155705,-628.83,0.00026849,2]
[381633784,1756299155714,-480.0,0.00026849,2]
[381633785,1756299155724,-480.0,0.00026849,2]
[381633786,1756299155738,-902.71,0.00026849,2]
[381633787,1756299155748,-591.53,0.00026849,2]
[381633788,1756299155758,-480.0,0.00026849,2]
[381633789,1756299155769,-818.78,0.00026849,2]
[381633790,1756299155778,-8495.42,0.00026849,2]
[381633791,1756299155790,-445.13515415,0.00026849,2]
[381633792,1756299155800,-858.98,0.00026849,2]
[381633793,1756299155810,-746.51,0.00026849,2]
[381633794,1756299155820,-625.32,0.00026849,2]
[381633795,1756299155830,-1365.1,0.00026849,2]
[381633796,1756299155840,-480.0,0.00026849,2]
[381633797,1756299155850,-624.5,0.00026849,2]
[381633798,1756299155860,-1152.04,0.00026849,2]
[381633799,1756299155870,-599.34,0.00026849,2]
[381633800,1756299155880,-2015.87,0.00026849,2]
[381633801,1756299155890,-579.93,0.00026849,2]
[381633802,1756299155900,-810.1,0.00026849,2]
[381633803,1756299155910,-793.74,0.00026849,2]
[381633804,1756299155920,-182.03035522,0.00026849,2]
[381633805,1756299155930,-1099.58,0.00026849,2]
[381633806,1756299155939,-496.5430868,0.00026849,2]
[381633807,1756299155949,-736.43,0.00026849,2]
[381633808,1756299155959,-1838.61,0.00026849,2]
[381633809,1756299155968,-898.68,0.00026849,2]
[381633810,1756299155979,-480.0,0.00026849,2]
[381633811,1756299155988,-480.0,0.00026849,2]
[381633812,1756299155999,-916.71,0.00026849,2]
[381633813,1756299156008,-480.0,0.00026849,2]
[381633814,1756299156018,-521.43,0.00026849,2]
[381633815,1756299156028,-350.89430028,0.00026849,2]
[381633816,1756299156038,-539.62,0.00026849,2]
[381633817,1756299156048,-727.24,0.00026849,2]
[381633818,1756299156059,-480.0,0.00026849,2]
[381633819,1756299156068,-909.76,0.00026849,2]
[381633820,1756299156078,-1026.14,0.00026849,2]
[381633821,1756299156088,-1170.25,0.00026849,2]
[381633822,1756299156098,-1249.43,0.00026849,2]
[381633823,1756299156108,-711.06,0.00026849,2]
[381633824,1756299156118,-480.0,0.00026849,2]
[381633825,1756299156128,-962.75,0.00026849,2]
[381633826,1756299156138,-670.56,0.00026849,2]
[381633827,1756299156148,-780.75,0.00026849,2]
[381633828,1756299156157,-275.20383491,0.00026849,2]
[381633829,1756299156168,-633.62,0.00026849,2]
[381633830,1756299156177,-638.03,0.00026849,2]
[381633831,1756299156187,-886.17,0.00026849,2]
[381633832,1756299156197,-1346.67,0.00026849,2]
[381633833,1756299156207,-677.64,0.00026849,2]
[381633834,1756299156217,-480.0,0.00026849,2]
[381633835,1756299156227,-741.13,0.00026849,2]
[381633836,1756299156237,-952.53,0.00026849,2]
[381633837,1756299156247,-635.74,0.00026849,2]
[381633838,1756299156257,-574.03,0.00026849,2]
[381633839,1756299156267,-508.7,0.00026849,2]
[381633840,1756299156277,-687.48,0.00026849,2]
[381633841,1756299156286,-1268.98,0.00026849,2]
[381633842,1756299156296,-856.71,0.00026849,2]
[381633843,1756299156306,-6495.25,0.00026849,2]
[381633844,1756299156316,-636.86,0.00026849,2]
[381633845,1756299156326,-486.07,0.00026849,2]
[381633846,1756299156335,-1458.92,0.00026849,2]
[381633847,1756299156346,-524.69,0.00026849,2]
[381633848,1756299156355,-905.99,0.00026849,2]
[381633849,1756299156365,-837.39,0.00026849,2]
[381633850,1756299156375,-624.44,0.00026849,2]
[381633851,1756299156391,-771.49,0.00026849,2]
[381633852,1756299156401,-1529.63,0.00026849,2]
[381633853,1756299156411,-1847.92,0.00026849,2]
[381633854,1756299156421,-3400.62,0.00026849,2]
[381633855,1756299156431,-8247.96,0.00026849,2]
[381633856,1756299156441,-583.48,0.00026849,2]
[381633857,1756299156452,-480.0,0.00026849,2]
[381633858,1756299156462,-1076.84,0.00026849,2]
[381633859,1756299156473,-1635.61,0.00026849,2]
[381633860,1756299156483,-564.33,0.00026849,2]
[381633861,1756299156492,-1200.96,0.00026849,2]
[381633862,1756299156506,-740.19,0.00026849,2]
[381633863,1756299156516,-1559.95,0.00026849,2]
[381633864,1756299156526,-163.41529278,0.00026849,2]
[381633865,1756299156863,-200.0,0.00021029,10]
[381633866,1756299156893,-200.0,0.00021029,10]
[381633867,1756299156924,-200.0,0.00021029,10]
[381633868,1756299156953,200.0,0.00021029,10]
[381633869,1756299157289,200.0,0.00021029,10]
[381633870,1756299157333,-151.0,0.00021241,2]
[381633871,1756299157343,-300.0,0.00021241,2]
[381633872,1756299157352,-151.0,0.00021241,2]
[381633873,1756299157361,-300.0,0.00021241,2]
[381633874,1756299157372,-2763.47840449,0.00021571,2]
[381633875,1756299157436,200.0,0.00021029,10]
[381633876,1756299157518,200.0,0.00021029,10]
[381633877,1756299157598,200.0,0.00021029,10]
[381633878,1756299157664,200.0,0.00021029,10]
[381633879,1756299157741,200.0,0.00021029,10]
[381633880,1756299157886,200.0,0.00021029,10]
[381633881,1756299158000,200.0,0.00021029,10]
[381633882,1756299158082,200.0,0.00021029,10]
[381633883,1756299158139,200.0,0.00021029,10]
[381633885,1756299158308,200.0,0.00021029,10]
[381633886,1756299158349,200.0,0.00021029,10]
[381633887,1756299158438,243.388394,0.00021029,10]
[381633888,1756299159245,-151.0,0.00021241,2]
[381633889,1756299159277,-151.0,0.00021241,2]
[381633890,1756299159308,-300.0,0.00021241,2]
[381633891,1756299159339,-151.0,0.00021241,2]
[381633892,1756299159370,-300.0,0.00021241,2]
[381633893,1756299159400,-201.05840099,0.00021241,2]
[381633894,1756299159429,-300.0,0.00021241,2]
[381633895,1756299159460,-264.3121026,0.00021571,2]
[381633896,1756299159491,-3139.81875585,0.00021626,2]
[381633897,1756299159604,-300.0,0.00021241,2]
[381633898,1756299159636,-3255.99204981,0.00021681,2]
[381633899,1756299159982,-3376.46375566,0.00021736,2]
[381633900,1756299160043,-3501.39291462,0.00021791,2]
[381633901,1756299160131,-3630.94445246,0.00021846,2]
[381633902,1756299160161,-425.44119842,0.00021879,3]
[381633903,1756299160190,-151.0,0.000219,2]
[381633904,1756299160219,-245.521069,0.000219,2]
[381633905,1756299160250,-151.0,0.000219,2]
[381633906,1756299160279,-151.0,0.000219,2]
[381633907,1756299160309,-244.67549124,0.000219,2]
[381633908,1756299160399,-0.84557776,0.000219,2]
[381633909,1756299160428,-151.0,0.000219,2]
[381633910,1756299160457,-151.0,0.000219,2]
[381633911,1756299160488,-3631.65357983,0.00021901,2]
[381633912,1756299160518,-151.0,0.00021917,2]
[381633913,1756299160585,-4944.44,0.00021917,2]
[381633914,1756299160677,-300.0,0.00021241,2]
[381633915,1756299160705,-152.37807,0.000219,2]
[381633916,1756299160739,-111.13,0.00021917,2]
[381633917,1756299160768,-245.521069,0.00021917,2]
[381633918,1756299160798,-151.0,0.00021917,2]
[381633919,1756299160830,-245.521069,0.00021917,2]
[381633920,1756299160859,-480.0,0.00021917,2]
[381633921,1756299160889,-151.0,0.00021917,2]
[381633922,1756299160918,-151.0,0.00021917,2]
[381633923,1756299160947,-151.0,0.00021917,2]
[381633924,1756299160975,-480.0,0.00021917,2]
[381633925,1756299161004,-245.521069,0.00021917,2]
[381633926,1756299161034,-151.0,0.00021917,2]
[381633927,1756299161062,-245.521069,0.00021917,2]
[381633928,1756299161091,-151.0,0.00021917,2]
[381633929,1756299161120,-151.0,0.00021917,2]
[381633930,1756299161150,-480.0,0.00021917,2]
[381633931,1756299161179,-480.0,0.00021917,2]
[381633932,1756299161208,-474.825308,0.00021917,2]
[381633933,1756299161322,-5.174692,0.00021917,2]
[381633934,1756299161378,-151.0,0.00021917,2]
[381633935,1756299161436,-151.0,0.00021917,2]
[381633936,1756299161488,-480.0,0.00021917,2]
[381633937,1756299161536,-480.0,0.00021917,2]
[381633938,1756299161586,-480.0,0.00021917,2]
[381633939,1756299161632,-480.0,0.00021917,2]
[381633940,1756299161679,-480.0,0.00021917,2]
[381633941,1756299161712,-480.0,0.00021917,2]
[381633942,1756299161777,-4369.95,0.00021917,2]
[381633943,1756299161810,-480.0,0.00021917,2]
[381633944,1756299163551,-354.00720343,0.00020419,2]
[381633945,1756299163582,-300.0,0.00021241,2]
[381633946,1756299163612,-300.0,0.00021241,2]
[381633947,1756299163643,-300.0,0.00021241,2]
[381633948,1756299163672,-300.0,0.00021241,2]
[381633949,1756299163702,-500.0,0.00021241,2]
[381633950,1756299163733,-300.0,0.00021241,2]
[381633951,1756299163767,-500.0,0.00021241,2]
[381633952,1756299163798,-500.0,0.00021241,2]
[381633953,1756299163829,-300.0,0.00021241,2]
[381633954,1756299163860,-500.0,0.00021241,2]
[381633955,1756299163890,-300.0,0.00021241,2]
[381633956,1756299163922,-151.0,0.000219,2]
[381633957,1756299163952,-309.99559314,0.00021917,2]
[381633958,1756299164017,-300.0,0.00021241,2]
[381633959,1756299164048,-170.00440686,0.00021917,2]
[381633960,1756299164079,-480.05418794,0.00021917,2]
[381633961,1756299164109,-480.0,0.00021917,2]
[381633962,1756299164138,-480.0,0.00021917,2]
[381633963,1756299164168,-2005.14,0.00021917,2]
[381633964,1756299164197,-480.0,0.00021917,2]
[381633965,1756299164225,-480.0,0.00021917,2]
[381633966,1756299164297,-500.0,0.00021241,2]
[381633967,1756299164326,-1612.35,0.00021917,2]
[381633968,1756299164357,-480.0,0.00021917,2]
[381633969,1756299164386,-480.0,0.00021917,2]
[381633970,1756299164416,-480.0,0.00021917,2]
[381633971,1756299164445,-480.0,0.00021917,2]
[381633972,1756299164475,-480.0,0.00021917,2]
[381633973,1756299164506,-480.0,0.00021917,2]
[381633974,1756299164567,-480.0,0.00021917,2]
[381633975,1756299164597,-480.0,0.00021917,2]
[381633976,1756299164626,-480.0,0.00021917,2]
[381633977,1756299164656,-480.0,0.00021917,2]
[381633978,1756299164685,-480.0,0.00021917,2]
[381633979,1756299164714,-480.0,0.00021917,2]
[381633980,1756299164744,-480.0,0.00021917,2]
[381633981,1756299164777,-425.44119842,0.00021973,7]
[381633982,1756299164808,-425.44119842,0.00022,7]
[381633983,1756299164838,-151.0,0.00022191,7]
[381633984,1756299164869,-245.521069,0.00022191,7]
[381633985,1756299164899,-151.0,0.00022191,7]
[381633986,1756299164929,-237.68199932,0.00022191,7]
[381633987,1756299164974,-7.83906968,0.00022191,7]
[381633988,1756299165007,-480.0,0.00022191,2]
[381633989,1756299165042,-3968.76186064,0.00022191,2]
[381633990,1756299165097,-1086.80813936,0.00022191,2]
[381633991,1756299165128,-151.0,0.00022191,7]
[381633992,1756299165159,-245.521069,0.00022191,7]
[381633993,1756299165190,-151.0,0.00022191,7]
[381633994,1756299165219,-151.0,0.00022191,7]
[381633995,1756299165250,-480.0,0.00022191,2]
[381633996,1756299165279,-245.521069,0.00022191,7]
[381633997,1756299165309,-245.521078,0.00022191,7]
[381633998,1756299165338,-151.0,0.00022191,7]
[381633999,1756299165366,-151.0,0.00022191,7]
[381634000,1756299165395,-480.0,0.00022191,2]
[381634001,1756299165425,-480.0,0.00022191,2]
[381634002,1756299165455,-480.0,0.00022191,2]
[381634003,1756299165487,-151.0,0.00022191,7]
[381634004,1756299165516,-262.090749,0.00022191,7]
[381634005,1756299165576,-300.0,0.00021241,2]
[381634006,1756299165605,-415.90203473,0.00022191,2]
[381634007,1756299165636,-480.0,0.00022191,2]
[381634008,1756299165670,-480.0,0.00022191,2]
[381634009,1756299165699,-480.0,0.00022191,2]
[381634010,1756299165734,-480.0,0.00022191,2]
[381634011,1756299165785,-480.0,0.00022191,2]
[381634012,1756299165867,-4369.95,0.00022191,2]
[381634013,1756299165897,-480.0,0.00022191,2]
[381634014,1756299165971,-500.0,0.00021241,2]
[381634015,1756299166002,-480.0,0.00021917,2]
[381634016,1756299166032,-480.0,0.00022191,2]
[381634017,1756299166061,-480.0,0.00022191,2]
[381634018,1756299166215,-2005.14,0.00022191,2]
[381634019,1756299166246,-480.0,0.00022191,2]
[381634020,1756299166276,-480.0,0.00022191,2]
[381634021,1756299166554,-1612.35,0.00022191,2]
[381634022,1756299166583,-480.0,0.00022191,2]
[381634023,1756299166612,-480.0,0.00022191,2]
[381634024,1756299166640,-480.0,0.00022191,2]
[381634025,1756299166669,-480.0,0.00022191,2]
[381634026,1756299166698,-480.0,0.00022191,2]
[381634027,1756299166727,-480.0,0.00022191,2]
[381634028,1756299166759,-480.0,0.00022191,2]
[381634029,1756299167908,-592.0,0.00020544,2]
[381634030,1756299170252,262.98103178,0.000199,2]
[381634032,1756299177031,-188.1589941,0.00020419,2]
[381634033,1756299185936,-160.0,0.00020419,2]
[381634034,1756299185945,-5950.45527749,0.00020419,2]
[381634035,1756299185962,-10000.01,0.00020419,2]
[381634036,1756299185977,-10000.01,0.00020419,2]
[381634037,1756299185996,-10000.01,0.00020419,2]
[381634038,1756299186016,-10000.01,0.00020419,2]
[381634039,1756299186031,-10000.01,0.00020419,2]
[381634040,1756299186600,-10000.01,0.00020419,2]
[381634041,1756299186652,-10000.01,0.00020419,2]
[381634042,1756299186828,-10000.01,0.00020419,2]
[381634043,1756299186878,-10000.01,0.00020419,2]
[381634044,1756299186923,-290.04679408,0.00020419,2]
[381634045,1756299186952,-10000.01,0.00020419,2]
[381634046,1756299186975,-10000.01,0.00020419,2]
[381634047,1756299187002,-10000.01,0.00020419,2]
[381634048,1756299187042,-10000.01,0.00020419,2]
[381634049,1756299187057,-10000.01,0.00020419,2]
[381634050,1756299187073,-10000.01,0.00020419,2]
[381634051,1756299189561,-160.0,0.00020418,2]
[381634052,1756299192036,-160.0,0.00020418,2]
[381634053,1756299195108,-282.37383233,0.00020214,2]
[381634054,1756299197384,-246.94704811,0.00020214,2]
[381634055,1756299198953,-645.5667457,0.00020214,2]
[381634056,1756299201713,-313.10216777,0.00020214,2]
[381634057,1756299204593,-158.34302403,0.00020214,2]
[381634058,1756299206329,-406.12819248,0.00020214,2]
[381634059,1756299208971,-265.51971821,0.00020214,2]
[381634060,1756299210225,-2682.01927137,0.00020214,2]
[381634061,1756299210254,-49.33913065,0.00020418,2]
[381634062,1756299210283,-446.10452269,0.00020418,2]
[381634063,1756299210313,-500.0,0.00020418,2]
[381634064,1756299210343,-500.0,0.00020418,2]
[381634065,1756299210372,-644.14211932,0.00020418,2]
[381634066,1756299210610,-356.79991194,0.00020418,2]
[381634067,1756299210643,-156.38942951,0.00020418,2]
[381634068,1756299210672,-500.0,0.00020418,2]
[381634069,1756299210701,-396.70386788,0.00020418,2]
[381634070,1756299210731,-500.0,0.00020418,2]
[381634071,1756299210759,-244.07752561,0.00020418,2]
[381634072,1756299210788,-380.1647621,0.00020418,2]
[381634073,1756299210821,-500.0,0.00020418,2]
[381634074,1756299210852,-513.18934145,0.00020418,2]
[381634075,1756299210882,-439.97792846,0.00020418,2]
[381634076,1756299210914,-513.18934145,0.00020418,2]
[381634077,1756299210944,-500.0,0.00020418,2]
[381634078,1756299210973,-199.43626563,0.00020418,2]
[381634079,1756299211082,-313.75307582,0.00020418,2]
[381634080,1756299211113,-513.18934145,0.00020418,2]
[381634081,1756299211144,-500.0,0.00020418,2]
[381634082,1756299211174,-500.0,0.00020418,2]
[381634083,1756299211205,-513.18934145,0.00020418,2]
[381634084,1756299211236,-500.0,0.00020418,2]
[381634085,1756299211266,-500.0,0.00020418,2]
[381634086,1756299211297,-465.8417735,0.00020418,2]
[381634087,1756299211326,-500.0,0.00020418,2]
[381634088,1756299211356,-500.0,0.00020418,2]
[381634089,1756299211589,-513.18934145,0.00020418,2]
[381634090,1756299211620,-500.0,0.00020418,2]
[381634091,1756299211649,-500.0,0.00020418,2]
[381634092,1756299211682,-513.18934145,0.00020418,2]
[381634093,1756299211712,-500.0,0.00020418,2]
[381634094,1756299211742,-513.18934145,0.00020418,2]
[381634095,1756299211773,-513.18934145,0.00020418,2]
[381634096,1756299211804,-500.0,0.00020418,2]